bitfinex/quotes_ETHUSD_20220119
["timestamp","ask_amount","ask_price","bid_price","bid_amount"]
[1642576668079,1.69296436,3063.3,3062.9,1.19801979]
[1642576668284,1.69296436,3063.3,3062.9,2.83033979]
[1642576668480,1.69296436,3063.3,3063.0,0.00568424]
[1642576669322,1.69296436,3063.3,3063.0,0.82186424]
[1642576669826,1.69296436,3063.3,3063.1,0.00511581]
[1642576670428,1.63234,3063.4,3063.1,0.00511581]
[1642576670630,1.63234,3063.4,3063.2,1.63218]
[1642576671027,1.63234,3063.4,3063.3,0.00397897]
[1642576671028,1.33214,3063.4,3063.3,0.00397897]
[1642576671527,6.89701463,3063.4,3063.3,0.00397897]
[1642576671928,6.08083463,3063.4,3063.3,0.00397897]
[1642576672529,6.08083463,3063.4,3063.2,0.00454739]
[1642576673273,6.89700463,3063.4,3063.2,0.00454739]
[1642576674678,6.89700463,3063.4,3063.2,1.65088006]
[1642576674980,6.89700463,3063.4,3063.3,0.00397897]
[1642576675581,4.11617,3063.4,3063.3,0.00397897]
[1642576675781,3.3,3063.4,3063.3,7.0]
[1642576675987,5.42505559,3064.2,3063.4,7.0]
[1642576676182,3.2643,3064.7,3063.5,2.67853447]
[1642576676382,6.35633,3065.0,3063.6,1.65799535]
[1642576676584,1.72389526,3064.1,3063.8,1.93591609]
[1642576676830,1.72389526,3064.1,3063.8,0.81586]
[1642576677430,1.72389526,3064.1,3063.7,0.00170527]
[1642576677830,2.44787,3064.2,3063.6,1.66026905]
[1642576677831,0.81583,3064.2,3063.6,1.66026905]
[1642576678232,0.81583,3064.2,3063.7,0.00170527]
[1642576678835,2.16637609,3064.0,3063.7,0.00170527]
[1642576679036,2.98236609,3064.0,3063.8,0.81602]
[1642576679336,0.81599,3064.0,3063.8,0.81602]
[1642576680593,0.81599,3064.1,3063.9,0.01996268]
[1642576680796,0.81599,3064.1,3064.0,1.45213146]
[1642576681198,0.52359,3064.1,3064.0,1.45213146]
[1642576681394,0.52359,3064.1,3063.9,1.3]
[1642576681395,1.84786854,3064.0,3063.9,1.3]
[1642576681595,1.84786854,3064.0,3063.9,0.3]
[1642576681897,1.84786854,3064.0,3063.9,1.11243966]
[1642576682098,1.84786854,3064.0,3063.7,1.63363527]
[1642576682298,1.84786854,3064.0,3063.8,0.816]
[1642576682496,1.84786854,3064.0,3063.8,0.81713685]
[1642576682700,1.84786854,3064.0,3063.8,1.6591322]
[1642576682898,1.84786854,3064.0,3063.9,4.45]
[1642576683096,0.52359,3064.1,3063.9,5.5849122]
[1642576683496,0.52359,3064.1,3063.9,4.45]
[1642576683699,0.52359,3064.1,3064.0,2.77432398]
[1642576684096,2.46593402,3064.1,3064.0,2.77432398]
[1642576684339,2.46593402,3064.1,3063.9,2.77432398]
[1642576684541,2.46593402,3064.1,3064.0,2.77432398]
[1642576684740,2.46593402,3064.1,3063.8,0.00113685]
[1642576685039,2.46593402,3064.1,3063.6,2.77659768]
[1642576685239,2.46593402,3064.1,3063.7,2.77432398]
[1642576685440,2.46593402,3064.1,3063.2,1.65799535]
[1642576685441,7.2661,3064.0,3063.2,1.65799535]
[1642576685649,0.81634,3063.6,3063.3,2.77486376]
[1642576685846,9.78205334,3063.6,3063.1,1.65799535]
[1642576686044,6.07291202,3063.5,3062.6,6.82767067]
[1642576686248,6.07291202,3063.5,3062.6,5.169]
[1642576686249,0.00113685,3063.5,3062.6,5.169]
[1642576686444,0.81643,3063.2,3062.7,0.00341054]
[1642576686647,0.81647,3063.0,3062.7,0.00341054]
[1642576686846,2.44938,3063.0,3062.7,0.00341054]
[1642576687046,1.94081319,3062.9,3062.7,0.00341054]
[1642576687646,3.57367319,3062.9,3062.7,0.00341054]
[1642576688283,1.63286,3062.9,3062.7,1.65867067]
[1642576688684,1.63286,3062.9,3062.8,0.00284211]
[1642576688887,1.58286,3062.9,3062.8,0.00284211]
[1642576689183,1.58286,3062.9,3062.7,2.43901952]
[1642576689385,1.58286,3062.9,3062.7,4.07145952]
[1642576689584,1.58286,3062.9,3062.8,1.6583002]
[1642576689984,1.58286,3062.9,3062.8,1.65829204]
[1642576690183,1.58286,3062.9,3062.7,1.63244]
[1642576690486,0.8164,3063.0,3062.9,4.43989684]
[1642576690883,0.81753685,3063.0,3062.9,4.43989684]
[1642576691287,0.52573685,3063.0,3062.9,8.78989684]
[1642576691490,0.52573685,3063.0,3062.9,4.43989684]
[1642576691730,0.52573685,3063.0,3062.9,5.83189684]
[1642576691731,0.00113685,3063.0,3062.9,5.83189684]
[1642576691929,1.63212,3063.7,3062.9,5.83189684]
[1642576691930,1.1278,3064.0,3063.0,7.0]
[1642576692129,1.32734957,3064.1,3063.4,1.65839926]
[1642576692335,0.00341053,3063.6,3063.4,1.65839926]
[1642576692532,0.00341053,3063.6,3063.5,8.29393601]
[1642576692832,1.6,3063.6,3063.5,9.93886731]
[1642576693033,1.6,3063.6,3063.5,12.57076731]
[1642576693432,1.6,3063.6,3063.5,10.91236805]
[1642576694231,1.6,3063.6,3063.5,12.57076731]
[1642576694632,1.6,3063.6,3063.5,10.91236805]
[1642576694839,1.6,3063.6,3063.5,9.91236805]
[1642576695031,1.6,3063.6,3063.5,8.6319]
[1642576695234,1.6,3063.6,3063.5,1.6319]
[1642576695482,1.6,3063.6,3062.9,4.43989684]
[1642576695483,0.0512537,3063.5,3062.9,4.43989684]
[1642576695681,1.9,3063.6,3062.9,4.43989684]
[1642576695880,1.9,3063.6,3063.0,2.6]
[1642576695881,2.22316538,3063.1,3063.0,2.6]
[1642576696080,2.22316538,3063.1,3063.0,0.00284212]
[1642576696280,2.22316538,3063.1,3062.9,4.43989684]
[1642576696483,1.92196538,3063.1,3062.9,4.43989684]
[1642576696880,1.92196538,3063.1,3062.7,1.65839926]
[1642576697081,1.6542434,3063.0,3062.6,1.65839926]
[1642576697281,7.88294,3063.0,3062.5,1.65839926]
[1642576697483,1.1165271,3062.9,3062.3,1.65839926]
[1642576697682,1.1165271,3062.9,3062.6,0.00113685]
[1642576697683,0.83228877,3062.8,3062.6,0.00113685]
[1642576697881,3.36654,3062.7,3062.2,1.65839926]
[1642576698082,1.11654,3062.7,3062.3,0.00170527]
[1642576698281,1.98962148,3062.6,3062.3,1.66010453]
[1642576698483,1.63322,3062.5,3062.3,1.66010453]
[1642576698681,1.63322,3062.5,3062.4,0.00113685]
[1642576699081,1.63322,3062.5,3062.1,1.65839926]
[1642576699082,2.4497893,3062.5,3062.1,1.65839926]
[1642576699337,2.4497893,3062.5,3062.3,1.65839926]
[1642576699532,2.4497893,3062.5,3062.2,0.00113684]
[1642576699733,1.63321,3062.4,3062.2,0.00113684]
[1642576699932,1.63321,3062.4,3062.2,1.6595361]
[1642576700535,1.63321,3062.4,3062.3,1.65839926]
[1642576700934,1.63321,3062.4,3062.2,1.6595361]
[1642576701136,1.63307,3062.5,3062.2,4.12120243]
[1642576701334,1.63307,3062.5,3062.4,1.65627192]
[1642576701534,1.34097,3062.5,3062.4,1.65627192]
[1642576701733,1.34097,3062.5,3062.3,1.65627192]
[1642576702133,1.34097,3062.5,3062.4,0.05627192]
[1642576702536,0.52443,3062.5,3062.3,3.30369559]
[1642576702987,1.63553695,3063.3,3062.3,3.30369559]
[1642576702988,1.6323892,3064.1,3062.4,2.48735559]
[1642576703186,1.6323892,3064.1,3062.5,2.48735559]
[1642576703187,1.67069601,3064.1,3062.5,2.48735559]
[1642576703387,1.67069601,3064.1,3062.4,4.76185742]
[1642576703388,0.00113685,3062.6,3062.4,4.76185742]
[1642576703588,0.00113685,3062.6,3062.5,2.31822343]
[1642576703788,2.15197036,3063.6,3062.5,1.50201343]
[1642576703988,0.81626,3062.7,3062.5,1.50201343]
[1642576704590,0.81626,3062.7,3062.2,1.81758684]
[1642576704788,1.63272,3062.7,3062.2,1.81758684]
[1642576705391,1.63272,3062.7,3062.2,0.00113684]
[1642576705791,0.81646,3062.7,3062.1,0.00170527]
[1642576705992,0.81646,3062.7,3062.0,2.77795546]
[1642576706191,0.81646,3062.7,3062.0,2.77568177]
[1642576706393,1.79650217,3062.4,3062.0,2.77568177]
[1642576706591,0.01767233,3062.3,3062.0,2.77568177]
[1642576706852,0.01880918,3062.3,3062.0,2.77568177]
[1642576707054,0.00113685,3062.3,3062.0,2.77568177]
[1642576707853,0.81778685,3062.3,3062.0,2.77568177]
[1642576708055,0.0145312,3062.2,3062.0,2.77568177]
[1642576708255,2.45108685,3062.3,3062.0,2.77568177]
[1642576711076,2.45108685,3062.3,3062.0,1.65462708]
[1642576711277,2.45108685,3062.3,3062.0,4.43030885]
[1642576711477,2.45108685,3062.3,3062.1,4.43030885]
[1642576711680,2.45108685,3062.3,3062.2,9.47568177]
[1642576711681,0.00113685,3062.3,3062.2,9.47568177]
[1642576711879,1.63553695,3063.3,3062.3,7.0022737]
[1642576712079,1.63553695,3063.3,3062.4,4.92191311]
[1642576712282,0.00170527,3062.6,3062.5,2.31860433]
[1642576712484,0.00170527,3062.6,3062.5,4.15736004]
[1642576712681,0.00170527,3062.6,3062.5,5.78986004]
[1642576713080,0.00170527,3062.6,3062.5,8.91427927]
[1642576716836,0.51932527,3063.0,3062.7,0.84694654]
[1642576717039,0.51932527,3063.0,3062.7,0.81625]
[1642576717338,0.00170527,3062.9,3062.7,0.81625]
[1642576717737,0.00113685,3062.8,3062.7,0.81625]
[1642576718176,0.00113685,3062.8,3062.7,7.81625]
[1642576718382,3.685e-05,3062.8,3062.7,9.28625]
[1642576718581,9.9567474,3064.3,3062.8,7.0]
[1642576718582,3.7505,3064.2,3062.8,7.0]
[1642576718782,1.1528,3064.3,3063.2,0.81602]
[1642576718981,4.50848,3064.7,3063.3,0.51111473]
[1642576719184,5.26959557,3064.7,3063.7,1.82287614]
[1642576719381,0.82442635,3064.3,3064.2,1.52457122]
[1642576719583,0.81597,3064.2,3063.7,0.47]
[1642576719883,0.0073895,3064.1,3063.8,1.63187]
[1642576720282,0.00682108,3064.0,3063.8,1.63187]
[1642576720687,0.00625266,3063.9,3063.8,1.63187]
[1642576720988,0.00625266,3063.9,3063.8,5.72647168]
[1642576721187,0.00625266,3063.9,3063.8,11.02647168]
[1642576721389,7.45,3064.9,3064.1,0.81579]
[1642576721743,0.00341054,3064.5,3064.3,0.04118142]
[1642576721941,0.00341054,3064.5,3064.4,8.90940577]
[1642576722140,7.45,3064.9,3064.4,1.90940577]
[1642576722340,1.64575289,3065.2,3064.4,1.90940577]
[1642576722542,0.00454738,3064.7,3064.4,0.47]
[1642576722745,0.00454738,3064.7,3064.1,0.11141051]
[1642576722746,0.82041738,3064.7,3064.1,1.63169]
[1642576722940,0.00397896,3064.6,3063.6,4.53769997]
[1642576723139,0.00397896,3064.6,3063.6,0.60819997]
[1642576723339,0.00341054,3064.5,3064.4,4.6]
[1642576723539,0.00341054,3064.5,3064.4,1.6]
[1642576723939,2.45123054,3064.5,3064.4,1.6]
[1642576724140,0.00341054,3064.5,3064.4,6.65]
[1642576724543,0.00341054,3064.5,3064.4,7.65]
[1642576724943,0.00341054,3064.5,3064.4,1.6]
[1642576725144,0.00341054,3064.5,3064.4,6.95]
[1642576725596,0.00341054,3064.5,3064.4,7.95]
[1642576725796,0.00341054,3064.5,3064.4,6.95]
[1642576725995,0.00341054,3064.5,3064.4,7.95]
[1642576726198,0.00341054,3064.5,3064.4,9.64735339]
[1642576726997,0.81567,3065.0,3064.5,7.0]
[1642576727198,0.81567,3065.0,3064.6,1.28566]
[1642576727401,0.51157,3065.0,3064.6,1.28566]
[1642576727599,0.51157,3065.0,3064.7,1.37269263]
[1642576727801,0.82123423,3065.5,3064.8,0.47]
[1642576728105,0.82072581,3065.4,3064.8,0.47]
[1642576728300,0.82072581,3065.4,3064.8,0.77]
[1642576728499,0.00454738,3065.3,3064.9,1.11556]
[1642576728700,0.00454738,3065.3,3065.0,0.47]
[1642576728900,0.00397896,3065.2,3065.0,0.47]
[1642576729100,0.00397896,3065.2,3065.0,1.47]
[1642576729330,0.00341054,3065.1,3065.0,1.47]
[1642576729631,1.63091,3066.1,3065.1,7.81546]
[1642576729832,1.63091,3066.1,3065.2,0.51412032]
[1642576730031,0.00113684,3065.3,3065.2,8.51412032]
[1642576730230,0.00113684,3065.3,3065.2,8.47]
[1642576730433,3.684e-05,3065.3,3065.2,9.66589335]
[1642576730638,3.684e-05,3065.3,3065.2,29.31134335]
[1642576730836,3.684e-05,3065.3,3065.2,28.11545]
[1642576731034,3.684e-05,3065.3,3065.2,51.65577778]
[1642576731235,3.9453,3067.2,3065.2,51.65577778]
[1642576731236,0.81523,3066.4,3065.3,7.0]
[1642576731435,0.81523,3066.4,3065.7,5.88]
[1642576731638,0.82148266,3066.4,3065.8,0.47]
[1642576731936,0.82148266,3066.4,3066.3,8.74956318]
[1642576732136,0.00625266,3066.4,3066.3,10.21956318]
[1642576732335,5.266e-05,3066.4,3066.3,10.21956318]
[1642576732534,4.09705266,3068.0,3066.4,7.0]
[1642576732734,4.09705266,3068.0,3066.6,0.00650827]
[1642576733008,0.00170527,3066.7,3066.6,7.0]
[1642576733200,0.81505,3067.4,3066.7,7.0]
[1642576733397,0.81498,3067.6,3066.9,0.01163504]
[1642576733597,0.00341054,3067.3,3067.2,8.40741695]
[1642576733795,0.00341054,3067.3,3067.2,8.87741695]
[1642576733999,1.62994,3067.8,3067.3,0.81488]
[1642576734197,0.81497,3067.9,3067.4,0.47]
[1642576734403,0.00113685,3067.5,3067.4,0.47]
[1642576734601,0.81486,3067.9,3067.5,7.0]
[1642576734804,2.04647543,3068.4,3067.7,1.1811608]
[1642576735004,0.00170527,3067.8,3067.6,1.0]
[1642576735203,0.815,3067.7,3067.0,0.11141051]
[1642576735401,1.63035,3067.6,3067.1,0.47]
[1642576735600,1.63035,3067.6,3067.1,0.47227369]
[1642576735805,1.63035,3067.6,3067.2,0.00170527]
[1642576736001,2.33980447,3067.5,3067.3,0.47]
[1642576736843,4.78532447,3067.5,3067.3,0.47]
[1642576737843,4.48982447,3067.5,3067.3,0.47]
[1642576738348,1.63,3067.9,3067.4,7.0]
[1642576738542,1.63,3067.9,3067.4,7.51168344]
[1642576738743,1.63,3067.9,3067.5,0.00113685]
[1642576738944,0.81489,3067.9,3067.5,0.00113685]
[1642576739344,2.3365525,3067.7,3067.6,0.47]
[1642576739547,0.81489,3067.9,3067.6,6.67]
[1642576739746,2.44519,3068.4,3067.6,6.67]
[1642576739944,0.81488,3068.1,3067.6,6.67]
[1642576740145,0.00170527,3068.0,3067.6,0.47]
[1642576740592,0.00113684,3067.9,3067.6,0.47]
[1642576741192,1.73589732,3067.8,3067.6,0.47]
[1642576741397,1.73589732,3067.8,3067.5,0.00113685]
[1642576741594,0.0691715,3067.7,3067.5,0.00113685]
[1642576741792,0.0691715,3067.7,3067.1,0.00341054]
[1642576741793,0.8844077,3067.7,3067.1,0.00341054]
[1642576742092,0.8844077,3067.7,3066.9,0.00454739]
[1642576742093,3.2610262,3067.7,3066.9,0.00454739]
[1642576742292,1.6304452,3067.5,3066.9,0.00454739]
[1642576742494,0.81518,3067.4,3066.9,0.00454739]
[1642576742692,1.3378026,3067.4,3066.9,0.00454739]
[1642576743092,1.63043,3067.6,3066.9,0.00454739]
[1642576743292,1.92366696,3067.1,3066.9,0.00454739]
[1642576743498,0.8152,3067.1,3066.9,0.00454739]
[1642576743695,0.81519,3067.3,3066.9,0.00454739]
[1642576744092,0.81519,3067.3,3066.9,1.60454739]
[1642576744340,3.2608466,3067.7,3067.0,0.47]
[1642576744544,1.91768392,3067.6,3067.0,0.47397897]
[1642576744743,1.91768392,3067.6,3067.1,0.00341054]
[1642576745645,1.91768392,3067.6,3067.1,1.4347181]
[1642576745846,2.73274392,3067.6,3067.1,1.9047181]
[1642576746050,1.91768392,3067.6,3067.2,0.00284212]
[1642576746648,1.91768392,3067.6,3067.2,1.00284212]
[1642576747045,1.91768392,3067.6,3067.3,0.0022737]
[1642576747447,1.91768392,3067.6,3067.1,1.80358126]
[1642576747648,1.62608392,3067.6,3067.1,0.47]
[1642576747847,0.00113684,3067.5,3067.1,0.47]
[1642576748109,0.81506,3067.4,3067.1,0.47]
[1642576748904,0.00113684,3067.5,3067.1,1.59988174]
[1642576749106,0.00113684,3067.5,3067.3,0.01047528]
[1642576749304,0.00113684,3067.5,3067.4,7.47]
[1642576749504,0.00113684,3067.5,3067.4,7.77]
[1642576749706,0.00113684,3067.5,3067.4,7.47]
[1642576750503,0.00113684,3067.5,3067.4,8.47]
[1642576752133,0.00113684,3067.5,3067.4,1.47]
[1642576752337,0.00113684,3067.5,3067.4,0.47]
[1642576752535,0.00113684,3067.5,3067.2,3.8611]
[1642576752738,1.34168684,3068.0,3067.3,4.95]
[1642576752938,1.34168684,3068.0,3067.3,4.95113684]
[1642576753138,0.0022737,3067.9,3067.4,1.0]
[1642576753338,2.22854683,3067.9,3067.3,4.95113684]
[1642576753637,0.00170528,3067.8,3067.4,1.0]
[1642576753843,0.00170528,3067.8,3067.3,4.95113684]
[1642576754039,0.00113686,3067.7,3067.4,1.0]
[1642576754438,2.22627313,3067.9,3067.4,1.0]
[1642576754439,0.00170528,3067.8,3067.4,1.0]
[1642576754840,0.00113686,3067.7,3067.4,1.0]
[1642576755039,0.00113686,3067.7,3067.6,6.08638821]
[1642576755240,0.81668528,3067.8,3067.6,6.08638821]
[1642576755481,0.00113686,3067.7,3067.6,6.08638821]
[1642576755885,0.00113686,3067.7,3067.6,7.08638821]
[1642576756488,0.00113686,3067.7,3067.6,1.0]
[1642576756685,0.00113686,3067.7,3067.3,1.00113684]
[1642576757088,0.00113686,3067.7,3067.4,0.47]
[1642576757686,0.00113686,3067.7,3067.5,2.82336567]
[1642576757886,0.51796686,3068.4,3067.6,7.47]
[1642576758087,0.81486,3068.3,3067.7,7.0]
[1642576758287,0.81827054,3068.3,3067.6,1.47]
[1642576758486,0.81491,3068.1,3067.6,0.47]
[1642576758686,0.81491,3068.1,3067.3,1.00113684]
[1642576758893,5.29960974,3068.4,3067.3,1.00113684]
[1642576758894,0.00170527,3068.0,3067.3,1.00113684]
[1642576759095,0.00170527,3068.0,3067.4,0.00170527]
[1642576759336,1.6301,3067.8,3067.4,0.00170527]
[1642576759737,2.4452344,3067.7,3067.4,0.00170527]
[1642576760136,1.6301,3067.8,3067.3,0.0022737]
[1642576760338,2.97822049,3067.9,3067.3,0.0022737]
[1642576760541,3.79315049,3067.9,3067.1,2.77518708]
[1642576760743,2.97810049,3067.9,3067.2,0.00284212]
[1642576761046,2.97810049,3067.9,3067.2,1.47284212]
[1642576761241,2.97810049,3067.9,3067.3,2.77177654]
[1642576761442,0.81606684,3067.9,3067.5,1.27145353]
[1642576761843,0.00113684,3067.9,3067.5,1.27145353]
[1642576762044,0.00113684,3067.9,3067.5,2.27145353]
[1642576762241,0.00113684,3067.9,3067.6,0.47]
[1642576762641,0.00113684,3067.9,3067.7,2.15935439]
[1642576762843,0.00113684,3067.9,3067.7,3.44415439]
[1642576763089,0.00113684,3067.9,3067.7,2.5848]
[1642576763288,1.33233684,3068.5,3067.8,7.0]
[1642576763489,1.33233684,3068.5,3067.9,0.47]
[1642576763689,1.33233684,3068.5,3067.9,1.47]
[1642576764088,1.33233684,3068.5,3068.0,1.52129074]
[1642576764293,3.35660788,3068.5,3068.1,0.49109364]
[1642576764590,3.35660788,3068.5,3068.1,0.47]
[1642576765589,2.4446223,3068.4,3068.1,0.47]
[1642576765789,4.0743723,3068.4,3068.1,0.47]
[1642576765989,0.0022737,3068.3,3067.6,3.2295]
[1642576766192,0.8172337,3068.3,3067.7,3.24146113]
[1642576766491,0.8149,3068.1,3067.8,2.77152876]
[1642576766743,1.64864634,3068.0,3067.8,1.11884439]
[1642576766941,0.0022737,3068.3,3067.9,3.35]
[1642576767337,0.00170527,3068.2,3067.7,0.00113684]
[1642576767538,0.00170527,3068.2,3067.7,2.77257584]
[1642576767737,0.00113685,3068.1,3067.7,2.77257584]
[1642576768136,0.52162527,3068.3,3067.8,5.25]
[1642576768339,0.52162527,3068.3,3067.7,0.00113684]
[1642576768340,2.18766215,3068.2,3067.7,0.00113684]
[1642576768540,0.8149,3068.1,3067.9,0.00170527]
[1642576768842,0.8149,3068.1,3067.7,0.00284211]
[1642576768843,1.63014,3068.0,3067.7,0.00284211]
[1642576769239,1.63014,3068.0,3067.7,2.77436289]
[1642576769445,1.63014,3068.0,3067.8,2.77152078]
[1642576769639,1.63014,3068.0,3067.9,2.77152078]
[1642576769839,0.81496,3068.1,3067.9,2.77322605]
[1642576769840,1.6298852,3068.1,3067.9,2.77322605]
[1642576770042,1.6298852,3068.1,3067.9,0.00170527]
[1642576770240,1.6298852,3068.1,3068.0,0.00113684]
[1642576770489,1.6298852,3068.1,3067.7,2.77431995]
[1642576770691,1.6298852,3068.1,3067.8,0.00227369]
[1642576771892,2.4448152,3068.1,3067.8,0.00227369]
[1642576773193,2.1524152,3068.1,3067.8,0.00227369]
[1642576773996,1.62989,3068.1,3067.8,1.00227369]
[1642576774239,1.62989,3068.1,3067.9,2.77147784]
[1642576774434,1.62989,3068.1,3068.0,2.77147784]
[1642576774636,1.62989,3068.1,3068.0,2.77261468]
[1642576775036,1.62989,3068.1,3068.0,0.00113684]
[1642576775439,1.62989,3068.1,3067.9,0.00170527]
[1642576776037,1.62989,3068.1,3067.9,1.00170527]
[1642576776237,2.18766215,3068.2,3068.0,2.77147784]
[1642576776439,2.18766215,3068.2,3068.1,2.77147784]
[1642576776638,2.18766215,3068.2,3068.0,0.00113684]
[1642576777338,1.62973,3068.5,3068.0,2.77261468]
[1642576777539,0.8148,3068.5,3068.1,2.03079903]
[1642576777738,0.8148,3068.5,3068.2,2.77147784]
[1642576777739,0.00113685,3068.4,3068.2,2.77147784]
[1642576777988,0.00113685,3068.4,3068.0,1.00113684]
[1642576777989,0.00113685,3068.4,3068.3,6.57147784]
[1642576778290,0.00113685,3068.4,3068.3,7.75705349]
[1642576778489,1.83986511,3068.5,3068.4,4.65]
[1642576778689,1.32917685,3068.8,3068.4,2.77147784]
[1642576778890,0.00170527,3068.7,3068.4,2.77147784]
[1642576779289,0.00113685,3068.6,3068.4,2.77147784]
[1642576779694,1.62323178,3068.7,3068.5,3.75]
[1642576779891,1.8304862,3068.6,3068.3,2.08844775]
[1642576780092,1.8304862,3068.6,3068.4,2.7710612]
[1642576780294,1.8304862,3068.6,3068.4,2.77219804]
[1642576781737,1.8304862,3068.6,3068.4,0.00113684]
[1642576781933,1.8304862,3068.6,3068.4,2.77215576]
[1642576782532,1.8304862,3068.6,3068.4,0.00113684]
[1642576783535,1.62323178,3068.7,3068.4,2.08064214]
[1642576783736,3.25859,3069.3,3068.5,4.05554988]
[1642576783933,3.25859,3069.3,3068.6,2.09202126]
[1642576784134,3.25859,3069.3,3068.6,1.0]
[1642576784135,0.00227369,3069.0,3068.6,1.0]
[1642576784333,0.00227369,3069.0,3068.7,0.47]
[1642576784532,0.00170527,3068.9,3068.7,0.47]
[1642576784734,2.13149607,3068.8,3068.7,0.47]
[1642576784939,2.13263291,3068.8,3068.4,1.60113684]
[1642576785591,2.13263291,3068.8,3068.4,0.40883684]
[1642576785793,1.6299341,3068.6,3068.4,0.40883684]
[1642576786189,1.6299341,3068.6,3068.4,3.684e-05]
[1642576786590,7.4299341,3068.6,3067.7,2.77135734]
[1642576786892,0.01228059,3068.3,3067.8,0.00341055]
[1642576787095,0.01228059,3068.3,3066.8,0.13819997]
[1642576787394,0.01228059,3068.3,3066.9,2.77678714]
[1642576787395,1.63053,3068.1,3066.9,2.77678714]
[1642576787599,1.63053,3068.1,3067.0,2.77167133]
[1642576787794,0.00113685,3068.0,3067.0,2.77621872]
[1642576787992,0.00113685,3068.0,3067.1,2.77565029]
[1642576787993,1.94379062,3067.9,3067.1,2.77565029]
[1642576788194,2.4457851,3067.7,3067.2,2.77167133]
[1642576788392,4.0763651,3067.7,3067.2,2.77508187]
[1642576788592,0.02811322,3067.6,3066.5,4.15644972]
[1642576788793,0.33038691,3067.6,3066.3,1.65409513]
[1642576789094,0.81539,3067.3,3066.6,0.00341054]
[1642576789350,2.03262381,3067.0,3066.6,0.00341054]
[1642576789550,2.03262381,3067.0,3066.1,1.66034779]
[1642576789749,2.24242671,3066.3,3066.2,0.00568424]
[1642576789951,1.74381537,3067.3,3066.3,3.15]
[1642576790349,1.74381537,3067.3,3066.4,0.00454739]
[1642576790551,0.81545,3066.9,3066.4,0.00454739]
[1642576790751,3.2618343,3066.8,3066.4,0.00454739]
[1642576790957,3.2618343,3066.8,3065.8,1.65409513]
[1642576790958,5.41170849,3066.8,3065.8,1.65409513]
[1642576791156,5.41170849,3066.8,3066.1,0.00170527]
[1642576791157,0.34458865,3066.7,3066.1,0.00170527]
[1642576791352,2.47661609,3066.6,3066.1,0.00170527]
[1642576791554,7.0,3066.5,3065.6,1.65409513]
[1642576791753,7.0,3066.5,3065.8,0.00170527]
[1642576791754,1.63141,3066.3,3065.8,0.00170527]
[1642576791956,1.63141,3066.3,3065.4,1.65409513]
[1642576791957,1.31639307,3065.9,3065.2,1.65409513]
[1642576792154,5.45,3066.0,3065.3,1.65409513]
[1642576792155,1.6316,3066.0,3065.3,1.65409513]
[1642576792351,3.88222926,3066.0,3065.5,0.00170527]
[1642576792557,0.8158,3065.8,3064.8,2.4812945]
[1642576792760,0.81595,3065.5,3065.3,0.00113685]
[1642576792987,0.81595,3065.5,3064.4,2.4812945]
[1642576792988,7.0,3065.3,3064.4,2.4812945]
[1642576793187,7.0,3065.3,3064.1,3.26468775]
[1642576793188,0.81595,3065.1,3064.7,0.00341054]
[1642576793586,0.81595,3065.1,3064.4,0.00511581]
[1642576793587,1.98129085,3065.0,3064.4,0.00511581]
[1642576793785,2.79724085,3065.0,3064.4,0.00511581]
[1642576793986,3.61324085,3065.0,3064.4,0.00511581]
[1642576794188,0.8159404,3064.9,3064.3,0.00568423]
[1642576794587,7.8159404,3064.9,3064.2,0.6]
[1642576794787,2.27910324,3064.3,3064.2,0.6]
[1642576794988,0.81604,3064.7,3064.3,4.43786706]
[1642576795189,1.6321198,3064.7,3064.3,4.43786706]
[1642576795392,0.00170527,3064.6,3064.3,4.43786706]
[1642576795791,0.00113685,3064.5,3064.3,4.43786706]
[1642576796193,1.6320806,3064.5,3064.3,4.43786706]
[1642576796593,0.8160328,3064.5,3064.3,4.43786706]
[1642576797236,0.81763527,3064.6,3064.3,4.43786706]
[1642576797438,0.00170527,3064.6,3064.3,4.43786706]
[1642576797636,0.81577,3064.9,3064.4,1.0]
[1642576797637,0.00113685,3064.5,3064.4,1.0]
[1642576798236,0.00113685,3064.5,3064.4,9.97261547]
[1642576798437,0.81577,3064.9,3064.7,1.19359479]
[1642576798636,0.52417,3064.9,3064.7,1.19359479]
[1642576798837,0.00170527,3064.8,3064.7,1.19359479]
[1642576799440,0.0161601,3064.7,3064.3,4.43786706]
[1642576799638,0.00170527,3064.8,3064.3,4.43786706]
[1642576799839,0.00113684,3064.7,3064.3,4.43786706]
[1642576800039,0.00113684,3064.7,3064.4,1.0]
[1642576800240,0.00113684,3064.7,3064.4,2.04828209]
[1642576800486,0.00113684,3064.7,3064.5,1.33299907]
[1642576800891,0.00113684,3064.7,3064.6,9.02983465]
[1642576801091,1.63409373,3066.0,3064.8,0.00337368]
[1642576801288,1.63409373,3066.0,3064.9,0.47]
[1642576801489,0.00397897,3065.4,3065.0,2.11590145]
[1642576801688,0.81958897,3065.4,3064.9,0.47]
[1642576801889,0.00341054,3065.3,3064.9,0.47]
[1642576802291,0.00284212,3065.2,3064.9,0.47]
[1642576802489,0.00284212,3065.2,3065.1,8.13284519]
[1642576802692,0.81561,3065.4,3065.1,8.13284519]
[1642576802890,0.81561,3065.4,3065.1,1.33284519]
[1642576803090,0.00341054,3065.3,3065.1,1.33284519]
[1642576803491,0.00284212,3065.2,3065.1,1.33284519]
[1642576803794,3.2631,3066.5,3065.1,1.33284519]
[1642576803795,0.81544,3066.1,3065.2,7.0]
[1642576803990,0.81544,3066.1,3065.3,2.73160503]
[1642576804236,0.00227369,3065.6,3065.3,1.47]
[1642576804635,0.00170527,3065.5,3065.3,5.637]
[1642576804834,0.00170527,3065.5,3065.3,3.58080404]
[1642576805036,0.81552,3065.9,3065.4,10.62509189]
[1642576805237,0.81542,3066.1,3065.5,1.0]
[1642576805436,0.00397896,3065.9,3065.6,2.30647709]
[1642576805639,0.00397896,3065.9,3065.7,0.47]
[1642576805943,0.00341054,3065.8,3065.7,0.47]
[1642576806141,0.00341054,3065.8,3065.7,7.32]
[1642576806341,0.00341054,3065.8,3065.7,1.47]
[1642576806541,0.00341054,3065.8,3065.7,0.47]
[1642576807141,0.00341054,3065.8,3065.7,4.32]
[1642576807341,2.18063392,3065.8,3065.7,0.47]
[1642576807543,2.18063392,3065.8,3065.2,0.012822]
[1642576807746,0.8156,3065.5,3064.9,0.47]
[1642576807995,0.8156,3065.5,3064.8,0.00337368]
[1642576808186,0.00113685,3065.4,3065.0,0.00113685]